bitfinex-derivatives/quotes_BTCF0:USTF0_20241025
["timestamp","ask_amount","ask_price","bid_price","bid_amount"]
[1729874245323,0.52381475,67725.0,67724.0,0.21577221]
[1729874245822,0.52381475,67725.0,67724.0,1.07577221]
[1729874246323,0.59767575,67725.0,67724.0,0.933862]
[1729874247919,0.679194,67725.0,67724.0,0.933862]
[1729874248222,0.59768707,67725.0,67724.0,0.933862]
[1729874248622,0.59768707,67725.0,67724.0,1.07577221]
[1729874248824,0.52382607,67725.0,67724.0,1.07577221]
[1729874249619,0.58444196,67725.0,67724.0,1.07577221]
[1729874249827,0.52382607,67725.0,67724.0,1.07577221]
[1729874250020,0.58444196,67725.0,67724.0,0.14191021]
[1729874250816,0.58444196,67725.0,67724.0,0.21577221]
[1729874251024,0.17601836,67725.0,67724.0,1.02481307]
[1729874251524,0.17101836,67725.0,67724.0,1.02481307]
[1729874251735,0.17101836,67725.0,67724.0,1.11235477]
[1729874251918,0.17101836,67725.0,67724.0,1.02481307]
[1729874252115,0.17101836,67725.0,67724.0,0.91577221]
[1729874252433,0.17101836,67725.0,67724.0,1.02359849]
[1729874253435,0.17101836,67725.0,67724.0,1.11114019]
[1729874253723,0.17101836,67725.0,67724.0,1.02359849]
[1729874254617,0.17101836,67725.0,67724.0,1.15239918]
[1729874255222,0.09710556,67725.0,67724.0,1.15239918]
[1729874256719,0.1026,67730.0,67729.0,0.073856]
[1729874256925,0.1026,67730.0,67729.0,0.45239318]
[1729874257327,0.176455,67730.0,67729.0,0.45239318]
[1729874257521,0.176455,67730.0,67729.0,0.31048297]
[1729874258037,0.176455,67730.0,67729.0,0.073856]
[1729874259135,0.073861,67726.0,67725.0,0.073859]
[1729874260227,0.073861,67725.0,67724.0,0.00088]
[1729874260422,0.434662,67725.0,67724.0,0.073862]
[1729874260831,0.434662,67725.0,67724.0,0.773862]
[1729874261636,0.073865,67721.0,67719.0,0.04406355]
[1729874261822,0.073865,67721.0,67709.0,0.07343926]
[1729874261823,0.073872,67715.0,67709.0,0.073878]
[1729874262022,0.50271021,67710.0,67705.0,0.073882]
[1729874262324,0.073881,67706.0,67705.0,0.073882]
[1729874262532,0.073881,67706.0,67705.0,0.773882]
[1729874262923,0.073881,67706.0,67705.0,0.7]
[1729874265525,0.36156,67710.0,67709.0,0.073878]
[1729874265732,0.3608,67710.0,67709.0,0.21578821]
[1729874266240,0.3608,67710.0,67709.0,0.32220886]
[1729874266426,0.0959,67714.0,67713.0,0.073874]
[1729874266741,0.0959,67714.0,67713.0,0.32220486]
[1729874267628,0.169773,67714.0,67713.0,0.32220486]
[1729874267823,0.169773,67714.0,67713.0,0.10642065]
[1729874268030,0.073874,67713.0,67712.0,0.07347534]
[1729874268242,0.073874,67713.0,67705.0,0.70076]
[1729874268243,0.073881,67706.0,67705.0,0.7]
[1729874268533,0.434681,67706.0,67705.0,0.7]
[1729874268734,0.446491,67706.0,67705.0,0.7]
[1729874269128,0.37261,67706.0,67703.0,0.05878948]
[1729874269437,0.37261,67706.0,67700.0,0.05878948]
[1729874269438,0.21579421,67704.0,67700.0,0.05878948]
[1729874269635,0.21579421,67704.0,67693.0,0.3608]
[1729874269636,0.21579421,67704.0,67702.0,0.04407068]
[1729874269840,0.21579521,67703.0,67702.0,0.04407068]
[1729874270341,0.65891521,67703.0,67702.0,0.04407068]
[1729874270641,0.073887,67701.0,67700.0,0.04405523]
[1729874270935,0.073887,67701.0,67700.0,0.073888]
[1729874271443,0.02420755,67705.0,67704.0,0.073884]
[1729874271739,0.01181,67706.0,67705.0,0.073883]
[1729874272236,0.085691,67706.0,67705.0,0.773883]
[1729874272632,0.085691,67706.0,67705.0,0.83255005]
[1729874273035,0.085691,67706.0,67705.0,0.773883]
[1729874276744,0.085691,67706.0,67705.0,0.7]
[1729874280248,0.57873,67706.0,67681.0,0.21581821]
[1729874280434,0.3608,67692.0,67685.0,0.2019]
[1729874280639,0.073897,67692.0,67691.0,0.073898]
[1729874281141,0.3608,67698.0,67691.0,0.14191021]
[1729874281334,0.3608,67698.0,67697.0,0.21580121]
[1729874282148,0.3608,67698.0,67697.0,0.073891]
[1729874282344,0.3608,67698.0,67696.0,0.073892]
[1729874282647,0.3608,67698.0,67691.0,0.74473525]
[1729874282648,0.073897,67692.0,67691.0,0.74473525]
[1729874282844,0.21580721,67692.0,67691.0,0.7]
[1729874283146,0.073897,67692.0,67691.0,0.81787325]
[1729874283451,0.073897,67692.0,67691.0,0.773898]
[1729874283747,0.073897,67692.0,67691.0,0.81788601]
[1729874283946,0.073897,67692.0,67691.0,0.81789442]
[1729874284333,0.172492,67697.0,67696.0,0.073892]
[1729874284544,0.073892,67697.0,67696.0,0.073892]
[1729874285433,0.073896,67694.0,67693.0,0.073893]
[1729874286442,0.073896,67694.0,67693.0,0.11790865]
[1729874287044,0.14191021,67697.0,67696.0,0.073892]
[1729874287937,0.21580121,67697.0,67696.0,0.073892]
[1729874288139,0.14191021,67697.0,67695.0,0.04401565]
[1729874288343,0.14191021,67697.0,67691.0,0.70076]
[1729874288344,0.073893,67695.0,67694.0,0.04401565]
[1729874288552,0.073896,67693.0,67692.0,0.073897]
[1729874289544,0.073892,67697.0,67696.0,0.073891]
[1729874289940,0.3608,67698.0,67697.0,0.073891]
[1729874290443,0.43469,67698.0,67697.0,0.073891]
[1729874290648,0.073892,67696.0,67695.0,0.073893]
[1729874291452,0.073892,67696.0,67695.0,0.13256005]
[1729874291849,0.62735021,67699.0,67695.0,0.20057726]
[1729874291850,0.00076,67699.0,67695.0,0.20057726]
[1729874292056,0.3608,67701.0,67700.0,0.073888]
[1729874292245,0.434686,67702.0,67701.0,0.073887]
[1729874292456,0.434686,67702.0,67701.0,0.13269845]
[1729874292644,0.3608,67702.0,67701.0,0.073887]
[1729874293353,0.434672,67715.0,67714.0,0.073873]
[1729874293858,0.434672,67715.0,67714.0,0.773873]
[1729874294058,0.434672,67715.0,67714.0,0.83266166]
[1729874294447,0.434672,67715.0,67714.0,0.773873]
[1729874295042,0.434672,67715.0,67714.0,0.7]
[1729874295649,0.434672,67715.0,67714.0,0.74405934]
[1729874296153,0.434672,67715.0,67712.0,0.073875]
[1729874296154,0.52487321,67715.0,67712.0,0.073875]
[1729874296358,0.073874,67713.0,67712.0,0.073875]
[1729874296553,0.18495255,67713.0,67712.0,0.073875]
[1729874296764,0.11107855,67713.0,67712.0,0.073875]
[1729874297251,0.19166377,67713.0,67712.0,0.653875]
[1729874297453,0.11107855,67713.0,67712.0,0.653875]
[1729874301359,0.06572551,67713.0,67712.0,0.073875]
[1729874301657,0.10341643,67713.0,67712.0,0.073875]
[1729874301863,0.26553777,67713.0,67712.0,0.073875]
[1729874302159,0.18494906,67713.0,67712.0,0.073875]
[1729874302853,0.3470704,67713.0,67712.0,0.073875]
[1729874303055,0.2850064,67713.0,67712.0,0.21578521]
[1729874303256,0.01181,67713.0,67712.0,0.70288455]
[1729874303461,0.01181,67713.0,67712.0,0.71761387]
[1729874303664,0.01181,67713.0,67712.0,0.65882521]
[1729874303857,0.00221599,67717.0,67712.0,0.65882521]
[1729874304059,0.3608,67729.0,67716.0,0.50271021]
[1729874304273,0.073858,67728.0,67727.0,0.073857]
[1729874308365,0.073862,67724.0,67723.0,0.073861]
[1729874309457,0.21577221,67724.0,67723.0,0.073861]
[1729874311155,0.32678826,67724.0,67716.0,0.34064774]
[1729874311356,0.22115677,67722.0,67721.0,0.073865]
[1729874311555,0.33217282,67722.0,67721.0,0.073865]
[1729874312165,0.37655631,67722.0,67721.0,0.073865]
[1729874312365,0.13857655,67722.0,67721.0,0.073865]
[1729874313272,0.073869,67718.0,67717.0,0.073868]
[1729874313466,0.32583456,67718.0,67717.0,0.073868]
[1729874313659,0.32583456,67718.0,67711.0,0.0989]
[1729874313660,0.25196556,67718.0,67711.0,0.0989]
[1729874313856,0.21578421,67713.0,67712.0,0.073872]
[1729874314064,0.13858555,67713.0,67712.0,0.073872]
[1729874314259,0.18393402,67713.0,67712.0,0.073872]
[1729874316454,0.11006002,67713.0,67712.0,0.073872]
[1729874316659,0.0738842,67713.0,67712.0,0.073872]
[1729874316858,0.11006002,67713.0,67712.0,0.073872]
[1729874317360,0.11006002,67713.0,67712.0,0.21578221]
[1729874317561,0.06471155,67713.0,67712.0,0.21578221]
[1729874317767,0.11006002,67713.0,67712.0,0.21578221]
[1729874318061,0.02853573,67713.0,67712.0,0.21578221]
[1729874318264,0.50851666,67717.0,67716.0,0.073871]
[1729874318265,0.36156,67717.0,67716.0,0.073871]
[1729874318457,0.073868,67719.0,67716.0,0.05864627]
[1729874318660,0.073868,67719.0,67718.0,0.073868]
[1729874319459,0.073868,67719.0,67718.0,0.13251427]
[1729874320061,0.073868,67719.0,67718.0,0.073868]
[1729874320472,0.073868,67719.0,67718.0,0.13254143]
[1729874321159,0.073868,67719.0,67718.0,0.71254143]
[1729874321360,0.073868,67719.0,67718.0,0.653868]
[1729874321774,0.073868,67719.0,67718.0,0.63876414]
[1729874321962,0.073868,67719.0,67718.0,0.58]
[1729874322367,0.073868,67719.0,67718.0,0.63876936]
[1729874322962,0.073868,67719.0,67718.0,0.58]
[1729874323469,0.073868,67719.0,67715.0,0.05876936]
[1729874323665,0.3608,67716.0,67715.0,0.05876936]
[1729874323877,0.073872,67715.0,67714.0,0.05876936]
[1729874324070,0.32158221,67715.0,67714.0,0.05876936]
[1729874325070,0.32158221,67715.0,67711.0,0.63952936]
[1729874325262,0.073875,67712.0,67711.0,0.58]
[1729874325660,0.073875,67712.0,67711.0,0.6388362]
[1729874326370,0.18395892,67712.0,67711.0,0.58]
[1729874327765,0.20729745,67712.0,67711.0,0.58]
[1729874329477,0.18395892,67712.0,67711.0,0.653876]
[1729874329977,0.26453942,67712.0,67711.0,0.073876]
[1729874330178,0.30989511,67712.0,67711.0,0.073876]
[1729874330372,0.18395796,67712.0,67711.0,0.073876]
[1729874330977,0.18395796,67712.0,67711.0,0.533876]
[1729874332579,0.11008296,67712.0,67711.0,0.533876]
[1729874332777,0.16288134,67716.0,67711.0,0.894676]
[1729874332964,0.11007355,67715.0,67714.0,0.073873]
[1729874333166,0.06472217,67715.0,67714.0,0.073873]
[1729874333371,0.3608,67727.0,67714.0,0.63477781]
[1729874333577,0.07386,67726.0,67725.0,0.07386]
[1729874333871,0.07386,67726.0,67725.0,0.53386]
[1729874334070,0.07386,67726.0,67725.0,0.5925833]
[1729874334271,0.07386,67726.0,67725.0,0.53386]
[1729874335673,0.08567,67726.0,67725.0,0.53386]
[1729874340677,0.08567,67726.0,67725.0,0.46]
[1729874340982,0.08567,67726.0,67725.0,0.05875666]
[1729874341883,0.75886817,67726.0,67725.0,0.05875666]
[1729874342083,0.86526817,67726.0,67725.0,0.05875666]
[1729874346086,0.073871,67716.0,67715.0,0.46]
[1729874346274,0.434671,67716.0,67715.0,0.46]
[1729874347186,0.434671,67716.0,67715.0,0.533872]
[1729874348178,0.434671,67716.0,67715.0,0.46]
[1729874348672,0.434671,67716.0,67704.0,0.3608]
[1729874348673,0.7216,67716.0,67697.0,0.24361021]
[1729874348874,0.073886,67704.0,67703.0,0.073884]
[1729874349081,0.21579621,67704.0,67703.0,0.533884]
[1729874349289,0.073886,67704.0,67703.0,0.533884]
[1729874350080,0.073886,67704.0,67703.0,0.46]
[1729874350379,0.21579621,67704.0,67703.0,0.46]
[1729874352185,0.073886,67704.0,67703.0,0.533885]
[1729874352691,0.073876,67711.0,67710.0,0.073877]
[1729874353885,0.14777025,67711.0,67710.0,0.073877]
[1729874354080,0.1839531,67711.0,67710.0,0.073877]
[1729874354585,0.24979826,67711.0,67710.0,0.073877]
[1729874354785,0.331334,67711.0,67710.0,0.073877]
[1729874355178,0.1839531,67711.0,67710.0,0.073877]
[1729874355481,0.073876,67711.0,67710.0,0.073877]
[1729874358676,0.3608,67716.0,67710.0,0.09992411]
[1729874358892,0.3608,67722.0,67716.0,0.073871]
[1729874359187,0.073864,67722.0,67721.0,0.21577521]
[1729874359572,0.073864,67722.0,67721.0,0.073865]
[1729874359774,0.085671,67726.0,67725.0,0.073861]
[1729874361493,0.085671,67726.0,67725.0,0.21577121]
[1729874361883,0.01181,67726.0,67725.0,0.21577121]
[1729874362488,0.01181,67726.0,67725.0,0.24245971]
[1729874363586,0.01181,67726.0,67725.0,0.82732992]
[1729874363886,0.3608,67741.0,67730.0,0.073855]
[1729874364092,0.073848,67737.0,67736.0,0.073844]
[1729874364299,0.3608,67741.0,67740.0,0.073844]
[1729874364300,0.434644,67741.0,67740.0,0.073844]
[1729874364477,0.434644,67741.0,67740.0,0.21575421]
[1729874364789,0.434644,67741.0,67740.0,0.67575421]
[1729874365090,0.3608,67741.0,67740.0,0.67575421]
[1729874365486,0.3726,67741.0,67740.0,0.67575421]
[1729874365687,0.0118,67741.0,67740.0,0.67575421]
[1729874365889,0.3608,67758.0,67750.0,0.07383]
[1729874366088,0.073831,67752.0,67751.0,0.21574221]
[1729874366282,0.073836,67748.0,67747.0,0.073836]
[1729874366482,0.07384,67745.0,67744.0,0.073839]
[1729874366688,0.14191021,67747.0,67741.0,0.073842]
[1729874366689,0.073843,67742.0,67741.0,0.073842]
[1729874366980,0.073843,67741.0,67740.0,0.46]
[1729874367185,0.073843,67741.0,67740.0,0.533844]
[1729874368087,0.14894861,67741.0,67740.0,0.073844]
[1729874368290,0.2504121,67741.0,67740.0,0.073844]
[1729874368489,0.33190979,67741.0,67740.0,0.073844]
[1729874368687,0.18517435,67741.0,67740.0,0.073844]
[1729874369196,0.18517435,67741.0,67740.0,0.413844]
[1729874370493,0.18517435,67741.0,67740.0,0.34]
[1729874370699,0.073847,67740.0,67739.0,0.073845]
[1729874370893,0.10368239,67740.0,67739.0,0.073845]
[1729874371193,0.073847,67740.0,67739.0,0.073845]
[1729874371589,0.073844,67740.0,67739.0,0.18]
[1729874372094,0.073844,67740.0,67739.0,0.253845]
[1729874373201,0.073844,67740.0,67739.0,0.18]
[1729874373600,0.073848,67737.0,67736.0,0.073848]
[1729874374094,0.434648,67737.0,67736.0,0.253848]
[1729874376090,0.434648,67737.0,67736.0,0.18]
[1729874376694,0.073856,67729.0,67728.0,0.073857]
[1729874377198,0.073856,67729.0,67728.0,0.18]
[1729874379504,0.073856,67729.0,67728.0,0.253857]
[1729874382607,0.073856,67729.0,67728.0,0.18]
[1729874382901,0.073856,67729.0,67728.0,0.253857]
[1729874386410,0.18390707,67729.0,67728.0,0.253857]
[1729874390515,0.3306194,67729.0,67728.0,0.073857]
[1729874391002,0.3306194,67729.0,67728.0,0.21576721]
[1729874391203,0.18390707,67729.0,67728.0,0.21576721]
[1729874391402,0.18390707,67729.0,67728.0,0.30576721]
[1729874392708,0.3306194,67729.0,67728.0,0.30576721]
[1729874393010,0.2567634,67729.0,67728.0,0.30576721]
[1729874393217,0.11005107,67729.0,67728.0,0.30576721]
[1729874393410,0.434655,67730.0,67729.0,0.073856]
[1729874394410,0.434655,67730.0,67729.0,0.163856]
[1729874396716,0.434655,67730.0,67729.0,0.20767061]
[1729874397225,0.434655,67730.0,67729.0,0.20779573]
[1729874398520,0.434655,67730.0,67729.0,0.163856]
[1729874399512,0.446465,67730.0,67729.0,0.163856]
[1729874400012,0.807265,67730.0,67729.0,0.073856]
[1729874400217,0.073859,67727.0,67722.0,0.04396607]
[1729874400529,2.25736542,67730.0,67711.0,0.05841949]
[1729874400530,0.073866,67720.0,67711.0,0.05841949]
[1729874400713,0.073866,67720.0,67708.0,0.05841949]
[1729874400714,0.073878,67709.0,67708.0,0.05841949]
[1729874400909,0.07388,67707.0,67701.0,0.05841949]
[1729874401108,0.57659621,67702.0,67701.0,0.05841949]
[1729874401314,0.47088995,67702.0,67701.0,0.14191021]
[1729874401522,0.47088995,67702.0,67701.0,0.21579721]
[1729874402126,0.54477595,67702.0,67701.0,0.073887]
[1729874402327,0.073889,67700.0,67697.0,0.073891]
[1729874402516,0.47088995,67702.0,67697.0,0.073891]
[1729874402517,0.07389,67698.0,67697.0,0.073891]
[1729874402827,0.02854466,67698.0,67693.0,0.3608]
[1729874403016,0.16150179,67699.0,67691.0,0.073898]
[1729874403017,0.073895,67694.0,67691.0,0.073898]
[1729874403215,0.34548682,67693.0,67691.0,0.073898]
[1729874403519,0.23539779,67693.0,67692.0,0.14191021]
[1729874403821,0.23539779,67693.0,67692.0,0.21580721]
[1729874403822,0.11010121,67693.0,67692.0,0.21580721]
[1729874404217,0.11010091,67693.0,67692.0,0.65900721]
[1729874404818,0.11010091,67693.0,67692.0,0.21580721]
[1729874405020,0.18399691,67693.0,67692.0,0.21580721]
[1729874405217,0.073898,67691.0,67690.0,0.09]
[1729874405716,0.13863643,67691.0,67690.0,0.09]
[1729874406027,0.06473843,67691.0,67690.0,0.09]
[1729874406233,0.06473843,67691.0,67690.0,0.163899]
[1729874406434,0.06473843,67691.0,67690.0,0.09]
[1729874406723,0.06473843,67691.0,67690.0,0.163899]
[1729874407628,0.13863643,67691.0,67690.0,0.09]
[1729874407825,0.1840029,67691.0,67690.0,0.09]
[1729874408430,0.03691918,67691.0,67690.0,0.09]
[1729874408921,0.073909,67681.0,67676.0,0.108]
[1729874409126,0.14191021,67682.0,67678.0,0.05854883]
[1729874409428,0.073913,67677.0,67676.0,0.16654883]
[1729874409726,0.14191021,67678.0,67674.0,0.05854883]
[1729874409923,0.14191021,67678.0,67673.0,0.3608]
[1729874409924,0.073916,67674.0,67673.0,0.57662721]
[1729874410120,0.073916,67674.0,67673.0,0.14191021]
[1729874410323,0.073916,67674.0,67673.0,0.30582721]
[1729874411032,0.073912,67678.0,67673.0,0.23191021]
[1729874411322,0.3608,67683.0,67673.0,0.23191021]
[1729874411323,0.434708,67683.0,67682.0,0.073908]
[1729874413327,0.434703,67687.0,67686.0,0.073903]
[1729874414026,0.434703,67687.0,67686.0,0.09]
[1729874414230,0.57661321,67687.0,67686.0,0.09]
[1729874417226,0.434703,67687.0,67686.0,0.09]
[1729874417828,0.434703,67687.0,67686.0,0.23191021]
[1729874418228,0.434703,67687.0,67686.0,0.30581321]
[1729874420326,0.434703,67687.0,67686.0,0.09]
[1729874421634,0.434703,67687.0,67686.0,0.163903]
[1729874423240,0.0022163,67693.0,67686.0,0.163903]
[1729874423241,0.0022163,67693.0,67692.0,0.073897]
[1729874423538,0.073886,67702.0,67701.0,0.073885]
[1729874423834,0.073886,67702.0,67701.0,0.21579521]
[1729874424227,0.3608,67704.0,67703.0,0.073885]
[1729874424728,0.073883,67705.0,67702.0,0.1123]
[1729874424924,0.073883,67705.0,67704.0,0.073884]
[1729874425127,0.12332,67714.0,67704.0,0.09]
[1729874425128,0.38780973,67712.0,67704.0,0.09]
[1729874425335,0.1106,67720.0,67708.0,0.50271021]
[1729874425536,0.07608787,67716.0,67715.0,0.073872]
[1729874425726,0.07608787,67716.0,67708.0,0.419259]
[1729874425727,0.00221587,67716.0,67711.0,0.132335]
[1729874426032,0.00221587,67716.0,67711.0,0.073876]
[1729874426235,0.073878,67709.0,67708.0,0.434679]
[1729874426430,0.073878,67709.0,67708.0,0.05851517]
[1729874426626,0.073879,67708.0,67707.0,0.05851517]
[1729874426826,0.3608,67709.0,67706.0,0.13239617]
[1729874426827,0.07388,67707.0,67706.0,0.13239617]
[1729874427131,0.3608,67709.0,67704.0,0.09]
[1729874427329,0.3608,67709.0,67704.0,0.11723581]
[1729874427330,0.073883,67705.0,67704.0,0.11723581]
[1729874427529,0.073883,67705.0,67704.0,0.1758029]
[1729874427731,0.073883,67705.0,67704.0,0.11723581]
[1729874428638,0.073883,67705.0,67704.0,0.1758029]
[1729874429340,0.073883,67705.0,67704.0,0.11723581]
[1729874430941,0.073883,67705.0,67704.0,0.09]
[1729874431629,0.188583,67705.0,67704.0,0.09]
[1729874432335,0.188583,67705.0,67702.0,0.05867057]
[1729874432336,0.073885,67703.0,67702.0,0.05867057]
[1729874432528,0.073891,67697.0,67696.0,0.05867057]
[1729874432733,0.073895,67694.0,67689.0,0.07302436]
[1729874432935,0.073895,67694.0,67690.0,0.05870395]
[1729874432936,0.14191021,67691.0,67690.0,0.05870395]
[1729874433237,0.073899,67690.0,67689.0,0.05870395]
[1729874433431,0.176999,67690.0,67688.0,0.05870395]
[1729874433631,0.0739,67689.0,67688.0,0.05870395]
[1729874434033,0.073902,67687.0,67686.0,0.05870395]
[1729874434341,0.073907,67683.0,67682.0,0.05870395]
[1729874434543,0.07391,67680.0,67679.0,0.05873581]
[1729874434838,0.50271021,67680.0,67676.0,0.05873581]
[1729874435039,0.14191021,67677.0,67676.0,0.05874482]
[1729874435339,0.21582321,67677.0,67676.0,0.05874837]
[1729874435641,0.073914,67676.0,67675.0,0.05874837]
[1729874435827,0.14191021,67677.0,67674.0,0.05874837]
[1729874436034,0.073915,67675.0,67674.0,0.05874837]
[1729874436234,0.0988,67676.0,67673.0,0.05875112]
[1729874436539,0.21582621,67674.0,67672.0,0.05875112]
[1729874436735,0.14191021,67673.0,67669.0,0.05875112]
[1729874436938,0.073916,67674.0,67669.0,0.05875112]
[1729874436939,0.50271021,67670.0,67669.0,0.05875112]
[1729874437139,0.3608,67670.0,67667.0,0.073923]
[1729874437343,0.3608,67670.0,67669.0,0.05876249]
[1729874437344,0.434721,67670.0,67669.0,0.05876249]
[1729874437543,0.073922,67669.0,67668.0,0.05876249]
[1729874438531,0.3608,67670.0,67666.0,0.05876249]
[1729874438734,0.073924,67667.0,67666.0,0.05876249]
[1729874439141,0.073924,67667.0,67666.0,0.08531922]
[1729874439443,0.073924,67667.0,67666.0,0.15924422]
[1729874439638,0.073924,67667.0,67666.0,0.05876249]
[1729874439844,0.073925,67666.0,67665.0,0.05876249]
[1729874440138,0.073927,67664.0,67663.0,0.05876249]
[1729874440330,0.073928,67663.0,67662.0,0.05876249]
[1729874440530,0.073928,67663.0,67662.0,0.05873123]
[1729874440745,0.073929,67662.0,67661.0,0.13266123]
[1729874440940,0.073929,67662.0,67661.0,0.07393]
[1729874441438,0.073929,67662.0,67661.0,0.13266333]
[1729874441638,0.01182,67664.0,67660.0,0.38809715]
[1729874441639,0.085748,67664.0,67663.0,0.073928]
[1729874441844,0.085748,67664.0,67663.0,0.27455064]
[1729874442743,0.085748,67664.0,67663.0,0.21583821]
[1729874444439,0.01182,67664.0,67661.0,0.05871243]
[1729874444642,0.073931,67661.0,67660.0,0.02729715]
[1729874444845,0.073931,67661.0,67659.0,0.05871243]
[1729874445032,0.073931,67661.0,67660.0,0.073932]
[1729874449542,0.3608,67663.0,67660.0,0.073932]
[1729874449738,0.3608,67663.0,67662.0,0.21583921]
[1729874450537,0.01182,67664.0,67663.0,0.073928]
[1729874450744,0.01182,67664.0,67663.0,0.264028]
[1729874452646,0.073928,67663.0,67662.0,0.02714448]
[1729874452946,0.073932,67660.0,67657.0,0.073935]
[1729874453141,0.073932,67660.0,67659.0,0.073933]
[1729874453341,0.03693908,67660.0,67659.0,0.073933]
[1729874455450,0.085748,67664.0,67663.0,0.073928]
[1729874457242,0.085748,67664.0,67663.0,0.21583821]
[1729874457443,0.01182,67664.0,67663.0,0.21583821]
[1729874458346,0.446547,67664.0,67663.0,0.073928]
[1729874458549,0.085747,67664.0,67663.0,0.073928]
[1729874459250,0.446547,67664.0,67663.0,0.073928]
[1729874459751,0.37262,67664.0,67663.0,0.073928]
[1729874459953,0.446547,67664.0,67663.0,0.073928]
[1729874461650,0.446547,67664.0,67663.0,0.17929314]
[1729874462353,0.446547,67664.0,67647.0,0.46303411]
[1729874462354,0.889907,67664.0,67662.0,0.0589315]
[1729874462653,0.889907,67664.0,67650.0,0.08762923]
[1729874462654,0.24291021,67663.0,67660.0,0.05899832]
[1729874462854,0.50271021,67661.0,67658.0,0.05899832]
[1729874463157,0.21584321,67659.0,67658.0,0.05899832]
[1729874463447,0.21584321,67659.0,67656.0,0.05903781]
[1729874463654,0.073937,67655.0,67654.0,0.05903781]
[1729874463858,0.21584721,67655.0,67654.0,0.05903781]
[1729874464155,0.65928721,67655.0,67654.0,0.05903781]
[1729874464360,0.073939,67653.0,67652.0,0.05905423]
[1729874464546,0.073949,67644.0,67643.0,0.07364384]
[1729874464851,0.073949,67644.0,67640.0,0.07364384]
[1729874464852,0.3608,67644.0,67640.0,0.07364384]
[1729874465057,0.21586221,67641.0,67640.0,0.07364384]
[1729874465446,0.14191021,67641.0,67639.0,0.07364384]
[1729874465649,0.073955,67639.0,67638.0,0.07364384]
[1729874466349,0.073958,67636.0,67635.0,0.14760284]
[1729874466657,0.073958,67636.0,67635.0,0.1476933]
[1729874466658,0.434758,67636.0,67635.0,0.1476933]
[1729874467153,0.434758,67636.0,67635.0,0.073959]
[1729874467348,0.0954,67643.0,67635.0,0.073959]
[1729874467349,0.0954,67643.0,67641.0,0.073951]
[1729874467557,0.3608,67644.0,67643.0,0.07395]
[1729874467747,0.3608,67650.0,67649.0,0.073944]
[1729874467951,0.3608,67650.0,67649.0,0.21585421]
[1729874469249,0.3608,67650.0,67649.0,0.28956213]
[1729874470852,0.434743,67650.0,67649.0,0.28956213]
[1729874471256,0.3608,67659.0,67649.0,0.21561813]
[1729874471553,0.073937,67655.0,67653.0,0.073939]
[1729874471753,0.3608,67659.0,67652.0,0.07370792]
[1729874471958,0.02624069,67663.0,67658.0,0.14191021]
[1729874472155,0.3608,67665.0,67664.0,0.073927]
[1729874472356,0.434726,67665.0,67664.0,0.073927]
[1729874472859,0.3608,67665.0,67664.0,0.073927]
[1729874473164,0.434726,67665.0,67664.0,0.073927]
[1729874475056,0.434726,67665.0,67631.0,0.14681043]
[1729874475057,0.3608,67665.0,67658.0,0.08762923]
[1729874475360,0.073934,67658.0,67656.0,0.07364196]
[1729874475663,0.50347021,67659.0,67654.0,0.14757996]
[1729874475861,0.073937,67655.0,67654.0,0.14757996]
[1729874476057,0.098,67658.0,67654.0,0.14757996]
[1729874476362,0.098,67658.0,67650.0,0.08762923]
[1729874476363,0.14191021,67655.0,67653.0,0.07364196]
[1729874476552,0.073938,67654.0,67650.0,0.073942]
[1729874476749,0.073942,67651.0,67650.0,0.073942]
[1729874478256,0.073943,67650.0,67649.0,0.1009]
[1729874478459,0.073943,67650.0,67646.0,0.073946]
[1729874478460,0.50359021,67651.0,67645.0,0.12726335]
[1729874478650,0.073947,67648.0,67647.0,0.073946]
[1729874479065,0.073947,67646.0,67641.0,0.1026]
[1729874479358,0.073948,67645.0,67644.0,0.073947]
[1729874479855,0.073955,67641.0,67640.0,0.073953]
[1729874480464,0.3608,67645.0,67637.0,0.14191021]
[1729874480758,0.073959,67635.0,67634.0,0.176559]
[1729874481651,0.073956,67638.0,67637.0,0.073956]
[1729874486564,0.3608,67645.0,67644.0,0.073949]
[1729874486867,0.36164,67651.0,67650.0,0.073943]
[1729874487069,0.3608,67651.0,67650.0,0.073943]
[1729874488871,0.36156,67660.0,67651.0,0.073942]
[1729874489163,0.434732,67660.0,67659.0,0.073933]
[1729874489364,0.3608,67660.0,67649.0,0.4562]
[1729874489555,0.43474,67654.0,67653.0,0.073939]
[1729874489960,0.073943,67650.0,67649.0,0.073943]
[1729874490158,0.21585321,67650.0,67649.0,0.17652807]
[1729874490357,0.21585321,67650.0,67649.0,0.10261873]
[1729874490566,0.21585321,67650.0,67646.0,0.14763856]
[1729874490567,0.073946,67647.0,67646.0,0.14763856]
[1729874490864,0.073948,67645.0,67644.0,0.14763956]
[1729874491059,0.10263555,67645.0,67644.0,0.073948]
[1729874491267,0.10263555,67645.0,67639.0,0.0976]
[1729874491268,0.17059776,67645.0,67639.0,0.0976]
[1729874491469,0.21586421,67641.0,67640.0,0.073952]
[1729874491665,0.24455176,67641.0,67640.0,0.073952]
[1729874491966,0.10264155,67641.0,67640.0,0.073952]
[1729874492359,0.02868755,67641.0,67640.0,0.073952]
[1729874492559,0.073946,67647.0,67641.0,0.073952]
[1729874492763,0.10262073,67646.0,67645.0,0.21585721]
[1729874493258,0.073948,67646.0,67645.0,0.21585721]
[1729874493466,0.3608,67648.0,67645.0,0.14191021]
[1729874493770,0.10266111,67647.0,67646.0,0.073947]
[1729874494672,0.10257434,67647.0,67646.0,0.073947]
[1729874496870,0.11439434,67647.0,67646.0,0.073947]
[1729874499383,0.085767,67647.0,67646.0,0.073947]
[1729874501780,0.01182,67647.0,67646.0,0.073947]
[1729874501975,0.085766,67647.0,67646.0,0.073947]
[1729874503575,0.01182,67647.0,67646.0,0.073947]
[1729874503880,0.01182,67647.0,67646.0,0.28954877]
[1729874504080,0.01182,67647.0,67646.0,0.14763856]
[1729874504282,0.01182,67647.0,67646.0,0.073947]
[1729874504578,0.01182,67647.0,67646.0,0.25087286]